[Event "FRA-ch Youth U18W 2019"]
[Site "Hyeres"]
[Date "2019.04.15"]
[Round "2.3"]
[White "Bourdeaux, Angele"]
[Black "Bellahcene, Meriem"]
[Result "1/2-1/2"]
[ECO "B28"]
[WhiteElo "1643"]
[BlackElo "1883"]
[Annotator "NA RC"]
[PlyCount "119"]
[EventDate "2019.04.14"]
[EventType "swiss"]
[EventCountry "FRA"]
[SourceTitle "playchess.com"]
[Source "ChessBase"]
[SourceQuality "1"]
[TimeControl "5400+30"]

{[%evp 8,119,11,21,57,27,59,32767,32767,32767,32767,32767,10,32767,32767,9,18,32767,38,7,51,19,20,0,32767,-2,32767,-93,-8,-29,-21,0,-47,-26,15,0,112,98,94,65,82,100,106,52,64,32767,32767,80,32767,32767,66,32767,32767,32767,68,64,32767,32767,32767,141,178,137,32767,32767,32767,32767,32767,32767,32767,32767,32767,6,5,5,32767,4,32767,0,32767,10,32767,8,8,6,32767,5,8,0,8,0,8,4,28,23,33,29,64,58,65,2,25,8,8,0,0,0,0,0,0,-7,0,0,0,0]} 1. e4 {[%emt 0:00:00]} c5 {[%emt 0:00:00]} 2. Nf3 {[%emt 0:00:00]} a6 {[%emt 0:00:00]} 3. g3 {[%emt 0:00:00]} d6 {[%emt 0:00:00]} 4. d3 {[%emt 0:00:01]} (4. Bg2 Nf6 5. Qe2 Nc6 6. O-O Bg4 7. c3 g6 8. h3 Bxf3 9. Bxf3 Bg7 10. Bg2 O-O 11. d3 Rb8 {1-0 (58) Zufic,M (2459)-Bogut,Z (2434) Bol 2015}) 4... Nf6 {[%emt 0:00:09]} 5. Bg2 {[%emt 0:00:07]} g6 {[%emt 0:00:17]} 6. O-O {[%emt 0:00:35] B28: Sicilian: 2 Nf3 a6 (O'Kelly Variation)} Bg7 {[%emt 0:00:02]} 7. c3 {[%emt 0:00:26]} O-O {[%emt 0:00:14]} 8. Nbd2 {[%emt 0:00:26]} Nc6 {[%emt 0:00:07]} 9. Re1 {[%emt 0:01:03]} Qc7 {[%emt 0:00:51]} 10. a4 {[%emt 0:03:04]} Bg4 {[%emt 0:02:00]} 11. Nc4 $146 {[%emt 0:07:01]} ({Predecessor:} 11. h3 Be6 12. Nf1 Nh5 13. g4 Nf6 14. Bf4 Qd7 15. d4 cxd4 16. cxd4 {0-1 (51) Fricke,E (998)-Suhr,S (1067) Magdeburg 2015}) 11... b5 {[%emt 0:01:38]} 12. Ne3 {[%emt 0:03:01]} Bd7 {[%emt 0:02:08]} 13. Nd5 {[%emt 0:17:22]} Qb7 {[%emt 0:08:25]} 14. axb5 {[%emt 0:09:46]} axb5 {[%emt 0:00:13]} 15. Bg5 {[%emt 0:02:00]} Be6 {[%emt 0:11:11]} 16. Nf4 {[%emt 0:09:00]} Bg4 {[%emt 0:06:20]} 17. h3 {[%emt 0:04:27]} (17. Rxa8 $11 {keeps the balance.} Rxa8 18. h3 Bxf3 19. Bxf3) 17... Bxf3 {[%emt 0:05:21]} (17... Rxa1 $17 18. Qxa1 Bxf3 19. Bxf3 Nd7) 18. Qxf3 {[%emt 0:01:36]} Rxa1 {[%emt 0:09:03]} 19. Rxa1 {[%emt 0:00:30]} Nd7 {[%emt 0:00:54]} 20. Nd5 {[%emt 0:10:22]} Nde5 {[%emt 0:04:15]} 21. Qe2 {[%emt 0:02:58]} f6 {[%emt 0:04:18]} (21... h6 $11 {keeps the balance.} 22. Bd2 e6) 22. Bd2 {[%emt 0:03:51]} Ra8 {[%emt 0:01:49]} 23. Rb1 {[%emt 0:04:40]} Ra6 {[%emt 0:05:06]} 24. f4 {[%emt 0:05:27]} Nf7 {[%emt 0:02:56]} 25. Qf1 {[%emt 0:03:45]} (25. f5 $16) 25... e6 {[%emt 0:06:27]} 26. Ne3 {[%emt 0:01:02]} Qa7 {[%emt 0:05:44]} 27. Nc2 {[%emt 0:02:21]} Ra2 {[%emt 0:05:23]} 28. Ra1 {[%emt 0:03:23]} Qa4 {[%emt 0:04:19]} (28... b4 $11) 29. Rxa2 {[%emt 0:04:33]} Qxa2 {[%emt 0:00:05]} 30. Qc1 {[%emt 0:00:56]} Na5 {[%emt 0:01:08]} 31. Qa1 $1 {[%emt 0:00:28]} Qxa1+ {[%emt 0:00:05]} 32. Nxa1 {[%emt 0:00:05]} f5 {[%emt 0:00:17]} 33. exf5 {[%emt 0:00:54]} exf5 {[%emt 0:00:09]} (33... gxf5 $16 34. b4 cxb4 35. cxb4 Nc4 36. dxc4 Bxa1) 34. Bd5 {[%emt 0:00:28]} Kf8 {[%emt 0:00:36]} 35. Nb3 {[%emt 0:00:32]} Nxb3 {[%emt 0:00:42]} 36. Bxb3 {[%emt 0:00:05]} Ke7 {[%emt 0:00:29]} 37. Kf2 {[%emt 0:00:13]} Nd8 {[%emt 0:00:14]} 38. Bd5 {[%emt 0:01:03]} Ne6 {[%emt 0:00:56]} 39. Be3 {[%emt 0:00:57]} Nc7 {[%emt 0:01:55]} 40. Bb3 {[%emt 0:00:46]} Kf6 {[%emt 0:03:14]} 41. Ba2 {[%emt 0:00:20]} Bf8 {[%emt 0:03:11]} 42. b4 {[%emt 0:00:26]} Na6 {[%emt 0:00:23]} 43. bxc5 {[%emt 0:00:18]} dxc5 {[%emt 0:00:40]} 44. Ke2 {[%emt 0:00:39]} Bd6 {[%emt 0:01:59]} 45. Bd5 {[%emt 0:00:29]} h6 {[%emt 0:00:14]} 46. Bc1 {[%emt 0:00:32]} Nc7 {[%emt 0:00:58]} 47. Ba2 {[%emt 0:00:50]} g5 {[%emt 0:01:03]} 48. Kf3 {[%emt 0:00:17]} Na8 {[%emt 0:01:44]} 49. Bb2 {[%emt 0:00:34]} Kg6 {[%emt 0:00:35]} 50. Ba3 {[%emt 0:00:35]} b4 {[%emt 0:02:49]} 51. Bb2 {[%emt 0:00:19]} Nb6 {[%emt 0:00:26]} 52. cxb4 {[%emt 0:00:34]} cxb4 {[%emt 0:00:01]} 53. Bd4 {[%emt 0:00:17]} (53. Be5 $5 {[%cal Re5d6]} Nc8 54. d4 $16) 53... Na4 {[%emt 0:00:47]} 54. Bb3 {[%emt 0:00:26]} Nc3 {[%emt 0:00:09]} 55. Bxc3 {[%emt 0:00:50]} bxc3 {[%emt 0:00:01]} 56. d4 {[%emt 0:00:33]} gxf4 {[%emt 0:00:54]} 57. gxf4 {[%emt 0:00:08]} Ba3 {[%emt 0:01:17]} 58. Bc2 {[%emt 0:00:13]} Kf6 {[%emt 0:00:57]} 59. d5 {[%emt 0:00:19]} Bc5 $11 {[%emt 0:01:09]} 60. Ke2 {[%emt 0:00:48]} 1/2-1/2

[Event "FRA-ch Youth U18W 2019"]
[Site "Hyeres"]
[Date "2019.04.15"]
[Round "2.4"]
[White "Belluire, Beatrice"]
[Black "Tourneur, Cloe"]
[Result "1-0"]
[ECO "B01"]
[WhiteElo "1870"]
[BlackElo "1654"]
[Annotator "NA RC"]
[PlyCount "69"]
[EventDate "2019.04.14"]
[EventType "swiss"]
[EventCountry "FRA"]
[SourceTitle "playchess.com"]
[Source "ChessBase"]
[SourceQuality "1"]
[TimeControl "5400+30"]

{[%evp 8,67,45,19,65,32767,32767,29,22,-8,87,93,102,132,112,104,32767,129,85,102,111,103,136,32767,102,48,164,138,128,152,215,233,259,239,342,355,408,387,349,402,466,262,254,260,387,350,660,491,32767,608,32767,1293,1322,32767,32767,730,32767,32767,32767,32767,1486,749]} 1. e4 {[%emt 0:00:00]} d5 {[%emt 0:00:00]} 2. exd5 {[%emt 0:00:00]} Nf6 {[%emt 0:00:00]} 3. Bb5+ {[%emt 0:00:00]} Bd7 {[%emt 0:00:02]} 4. Be2 {[%emt 0:00:00]} Nxd5 {[%emt 0:00:24]} 5. d4 {[%emt 0:00:00]} Nc6 {[%emt 0:06:31]} (5... Bf5 6. Nf3 e6 7. h3 Nb4 8. Na3 Be7 9. c3 Nd5 10. Nc4 O-O {½-½ (10) Delgado Ramirez,N (2602)-Matsuura,E (2492) Brasilia 2018}) 6. c4 {[%emt 0:04:43] B01: Scandinavian Defence} Nf6 {[%emt 0:03:15]} 7. d5 {[%emt 0:10:29]} Ne5 {[%emt 0:03:58]} 8. Qb3 $146 {[%emt 0:03:03]} ({Predecessor:} 8. Nc3 e6 9. Qd4 Ng6 10. Nf3 exd5 11. cxd5 Be7 12. O-O O-O 13. h3 Re8 14. Be3 Bd6 15. Nb5 Bxb5 16. Bxb5 Re4 17. Qd2 Nxd5 {½-½ (17) Jaeschke,J (2144)-Teichert,F (1774) Berlin 2016}) 8... Bc8 {[%emt 0:03:43]} (8... e6 $11) 9. Nf3 {[%emt 0:02:04]} Ned7 {[%emt 0:07:31]} 10. O-O {[%emt 0:02:51]} g6 {[%emt 0:01:21]} 11. Be3 {[%emt 0:11:14]} Bg7 {[%emt 0:03:47]} 12. Nc3 {[%emt 0:00:20]} O-O {[%emt 0:01:42]} 13. h3 {[%emt 0:02:25]} b6 {[%emt 0:07:56]} 14. Nd4 {[%emt 0:01:52]} Bb7 {[%emt 0:06:26]} 15. Rad1 {[%emt 0:00:21]} Qc8 {[%emt 0:04:47]} 16. Bf4 {[%emt 0:01:47]} a6 {[%emt 0:03:25]} (16... Nc5 $14 17. Qc2 Re8) 17. Rfe1 {[%emt 0:01:14]} Re8 {[%emt 0:02:27]} 18. Bf3 {[%emt 0:02:40]} Nc5 {[%emt 0:06:10]} (18... Nf8 $16 19. Qa3 N6d7 20. Rxe7 Ne5) 19. Qc2 {[%emt 0:00:24]} e6 {[%emt 0:01:49]} 20. b4 {[%emt 0:01:17]} Ncd7 {[%emt 0:06:12]} 21. dxe6 {[%emt 0:00:15]} fxe6 {[%emt 0:01:19]} 22. Bxb7 {[%emt 0:02:04]} Qxb7 {[%emt 0:00:18]} 23. Nxe6 {[%emt 0:00:21]} Qc6 {[%emt 0:05:20]} 24. Nxg7 {[%emt 0:06:34]} (24. Nxc7 $142 Rxe1+ 25. Rxe1) 24... Kxg7 {[%emt 0:01:16]} 25. Qd3 {[%emt 0:00:18]} a5 {[%emt 0:03:25]} 26. b5 {[%emt 0:05:34]} Qb7 $2 {[%emt 0:02:40]} (26... Qc5 27. Re3 Ne5) 27. Qd4 {[%emt 0:04:23]} Kf7 {[%emt 0:02:25]} 28. Nd5 {[%emt 0:01:31]} Nxd5 {[%emt 0:00:50]} 29. cxd5 {[%emt 0:00:25]} Nf6 {[%emt 0:04:13]} 30. Be5 {[%emt 0:08:31]} Nd7 {[%emt 0:01:56]} 31. d6 {[%emt 0:10:29]} cxd6 {[%emt 0:02:10]} 32. Bxd6 {[%emt 0:02:02]} Rad8 {[%emt 0:01:52]} 33. Qc4+ {[%emt 0:03:44]} Kg7 $18 {[%emt 0:00:59]} 34. Be7 {[%emt 0:00:32]} Rc8 {[%emt 0:01:31]} 35. Qd4+ {[%emt 0:00:19]} 1-0

[Event "FRA-ch Youth U18W 2019"]
[Site "Hyeres"]
[Date "2019.04.15"]
[Round "3.1"]
[White "Rollot, Florence"]
[Black "Spano, Aline"]
[Result "0-1"]
[ECO "A26"]
[WhiteElo "1975"]
[BlackElo "1419"]
[Annotator "NA"]
[PlyCount "108"]
[EventDate "2019.04.14"]
[EventType "swiss"]
[EventCountry "FRA"]
[SourceTitle "playchess.com"]
[Source "ChessBase"]
[SourceQuality "1"]
[TimeControl "5400+30"]

1. Nf3 {[%emt 0:00:14]} g6 {[%emt 0:00:22]} 2. c4 {[%emt 0:00:08]} Bg7 {[%emt 0:00:48]} 3. Nc3 {[%emt 0:00:49]} e5 {[%emt 0:00:57]} 4. g3 {[%emt 0:01:43]} Nc6 {[%emt 0:01:20]} 5. Bg2 {[%emt 0:00:35]} d6 {[%emt 0:01:25]} 6. O-O {[%emt 0:00:50]} Nf6 {[%emt 0:02:19]} 7. d3 {[%emt 0:03:08]} O-O {[%emt 0:01:13]} 8. Rb1 {[%emt 0:01:57]} a5 {[%emt 0:02:46]} 9. a3 {[%emt 0:06:47]} Re8 {[%emt 0:03:18]} 10. Ne1 {[%emt 0:08:08]} Nd4 {[%emt 0:04:10]} 11. b4 {[%emt 0:06:55]} axb4 {[%emt 0:04:14]} 12. Rxb4 {[%emt 0:00:32]} c6 {[%emt 0:02:58]} 13. e3 {[%emt 0:04:53]} Ne6 {[%emt 0:04:50]} 14. Rb1 $15 {[%emt 0:07:42]} h5 {[%emt 0:10:26]} 15. Nc2 {[%emt 0:08:52]} h4 {[%emt 0:06:21]} 16. e4 {[%emt 0:07:20]} Nh5 {[%emt 0:03:13]} 17. Bf3 {[%emt 0:06:58]} hxg3 {[%emt 0:11:17]} 18. fxg3 {[%emt 0:04:31]} Nf6 {[%emt 0:00:48]} 19. Kh1 {[%emt 0:04:18]} Kh7 {[%emt 0:04:45]} 20. Qe2 {[%emt 0:10:40]} Rh8 {[%emt 0:03:50]} 21. Be3 {[%emt 0:06:39]} Kg8 {[%emt 0:02:46]} 22. Qf2 {[%emt 0:01:25]} Nc5 {[%emt 0:03:20]} 23. Rbd1 {[%emt 0:02:35]} Qe7 {[%emt 0:01:24]} 24. Bg5 {[%emt 0:01:52]} Ncd7 {[%emt 0:10:53]} 25. Be2 {[%emt 0:00:57]} Qe6 {[%emt 0:01:04]} 26. Rb1 {[%emt 0:01:32]} Nh5 {[%emt 0:05:27]} 27. g4 {[%emt 0:00:45]} Nhf6 {[%emt 0:00:48]} 28. Rg1 {[%emt 0:00:24]} Nc5 {[%emt 0:01:25]} 29. Bxf6 {[%emt 0:00:37]} Bxf6 {[%emt 0:02:05]} 30. g5 {[%emt 0:00:10]} Bg7 {[%emt 0:00:16]} 31. Rbf1 {[%emt 0:00:31]} Rh3 {[%emt 0:01:49]} 32. Bg4 {[%emt 0:00:20]} Nxd3 {[%emt 0:00:07]} 33. Qd2 {[%emt 0:00:43]} Qxc4 {[%emt 0:02:01]} 34. Bxh3 {[%emt 0:00:09]} Bxh3 {[%emt 0:00:04]} 35. Rf3 {[%emt 0:00:36]} Nf4 {[%emt 0:01:30]} 36. Ne3 {[%emt 0:00:41]} Qc5 {[%emt 0:00:38]} 37. Ne2 {[%emt 0:00:49]} Rxa3 {[%emt 0:00:42]} 38. Ng3 {[%emt 0:00:36]} Bf8 {[%emt 0:00:38]} 39. Ne2 {[%emt 0:00:15]} Be7 {[%emt 0:00:38]} 40. Rfg3 {[%emt 0:00:26]} Be6 {[%emt 0:00:32]} 41. Rc1 {[%emt 0:00:15]} Qb6 {[%emt 0:00:13]} 42. Nc3 {[%emt 0:00:25]} Qb4 {[%emt 0:00:26]} 43. Ned1 {[%emt 0:00:36]} Nh5 {[%emt 0:00:30]} 44. Rg1 {[%emt 0:00:23]} Nf4 {[%emt 0:00:31]} 45. Rb1 {[%emt 0:00:19]} Rb3 {[%emt 0:00:33]} 46. Rxb3 {[%emt 0:01:11]} Bxb3 {[%emt 0:00:23]} 47. Qe3 {[%emt 0:00:45]} d5 {[%emt 0:00:46]} 48. Ne2 {[%emt 0:00:31]} Bc5 {[%emt 0:00:18]} 49. Qf3 {[%emt 0:00:24]} Bxg1 {[%emt 0:00:17]} 50. Nxf4 {[%emt 0:00:37]} exf4 {[%emt 0:00:42]} 51. Kxg1 {[%emt 0:00:28]} Qe1+ {[%emt 0:00:16]} 52. Kg2 {[%emt 0:00:32]} Bxd1 {[%emt 0:00:17]} 53. Qxf4 {[%emt 0:00:25]} Qxe4+ {[%emt 0:00:02]} 54. Qxe4 {[%emt 0:00:18]} dxe4 {[%emt 0:00:02]} 0-1

[Event "FRA-ch Youth U18W 2019"]
[Site "Hyeres"]
[Date "2019.04.15"]
[Round "3.2"]
[White "Boulart, Emilie"]
[Black "Lomandong, Noela-Joyce"]
[Result "0-1"]
[ECO "B07"]
[WhiteElo "1837"]
[BlackElo "1942"]
[Annotator "NA"]
[PlyCount "62"]
[EventDate "2019.04.14"]
[EventType "swiss"]
[EventCountry "FRA"]
[SourceTitle "playchess.com"]
[Source "ChessBase"]
[SourceQuality "1"]
[TimeControl "5400+30"]

1. e4 {[%emt 0:00:00]} d6 {[%emt 0:01:08]} 2. d4 {[%emt 0:00:00]} Nf6 {[%emt 0:02:12]} 3. Nc3 {[%emt 0:00:45]} g6 {[%emt 0:00:05]} 4. Bd3 {[%emt 0:00:55]} Bg7 {[%emt 0:00:09]} 5. Nge2 {[%emt 0:03:20]} Nc6 {[%emt 0:01:37]} 6. f3 {[%emt 0:03:50]} e5 {[%emt 0:01:56]} 7. Be3 {[%emt 0:02:55]} a6 {[%emt 0:05:12]} 8. Qd2 {[%emt 0:05:41]} exd4 {[%emt 0:11:20]} 9. Nxd4 {[%emt 0:00:38]} O-O {[%emt 0:00:12]} 10. O-O {[%emt 0:07:54]} Ne5 {[%emt 0:05:00]} 11. Nb3 $11 {[%emt 0:13:53]} Be6 {[%emt 0:08:12]} 12. Rad1 {[%emt 0:17:07]} Qe7 {[%emt 0:10:37]} 13. Kh1 {[%emt 0:04:22]} Rad8 {[%emt 0:08:56]} 14. f4 {[%emt 0:03:36]} Nxd3 {[%emt 0:02:18]} 15. cxd3 {[%emt 0:01:35]} Bxb3 {[%emt 0:08:41]} 16. axb3 {[%emt 0:00:16]} d5 {[%emt 0:02:52]} 17. e5 {[%emt 0:06:43]} d4 {[%emt 0:05:58]} 18. exf6 {[%emt 0:03:30]} Bxf6 {[%emt 0:00:08]} 19. Bf2 {[%emt 0:01:05]} dxc3 {[%emt 0:00:16]} 20. bxc3 {[%emt 0:00:07]} Rfe8 {[%emt 0:02:37]} 21. Rfe1 {[%emt 0:01:06]} Qd7 {[%emt 0:00:06]} 22. Rxe8+ {[%emt 0:03:11]} Rxe8 {[%emt 0:00:01]} 23. d4 {[%emt 0:02:03]} Qb5 {[%emt 0:00:47]} 24. Qd3 {[%emt 0:01:38]} Qxb3 {[%emt 0:01:45]} 25. Rb1 {[%emt 0:00:21]} Qa2 {[%emt 0:00:40]} 26. Re1 {[%emt 0:05:26]} Rxe1+ {[%emt 0:02:10]} 27. Bxe1 {[%emt 0:00:06]} Qa1 {[%emt 0:00:08]} 28. Qd2 {[%emt 0:00:10]} a5 {[%emt 0:01:00]} 29. g3 {[%emt 0:01:59]} a4 {[%emt 0:00:12]} 30. Kg2 {[%emt 0:00:34]} a3 {[%emt 0:00:12]} 31. f5 {[%emt 0:01:21]} Qb2 {[%emt 0:00:09]} 0-1

[Event "FRA-ch Youth U18W 2019"]
[Site "Hyeres"]
[Date "2019.04.15"]
[Round "3.3"]
[White "Landron, Audrey"]
[Black "Belluire, Beatrice"]
[Result "0-1"]
[ECO "A30"]
[WhiteElo "1414"]
[BlackElo "1870"]
[Annotator "NA"]
[PlyCount "88"]
[EventDate "2019.04.14"]
[EventType "swiss"]
[EventCountry "FRA"]
[SourceTitle "playchess.com"]
[Source "ChessBase"]
[SourceQuality "1"]
[TimeControl "5400+30"]

1. c4 {[%emt 0:00:00]} c5 {[%emt 0:00:00]} 2. Nf3 {[%emt 0:00:00]} b6 {[%emt 0:00:11]} 3. g3 {[%emt 0:00:23]} Bb7 {[%emt 0:00:01]} 4. Bg2 {[%emt 0:00:08]} g6 {[%emt 0:00:20]} 5. O-O {[%emt 1:31:59]} Bg7 6. d4 {[%emt 0:00:00]} cxd4 {[%emt 0:01:11]} 7. Nxd4 {[%emt 0:00:00]} Bxg2 {[%emt 0:00:54]} 8. Kxg2 {[%emt 0:00:00]} Nf6 {[%emt 0:06:03]} 9. Nc3 {[%emt 0:00:00]} O-O {[%emt 0:01:08]} 10. Nf3 {[%emt 0:00:00]} Qc7 {[%emt 0:01:20]} 11. Nd5 {[%emt 0:00:00]} Nxd5 {[%emt 0:01:19]} 12. cxd5 {[%emt 0:00:00]} d6 {[%emt 0:07:24]} 13. Rb1 {[%emt 0:00:00]} Nd7 {[%emt 0:03:18]} 14. Bf4 {[%emt 0:00:00]} Nf6 {[%emt 0:03:47]} 15. Re1 {[%emt 0:00:00]} Qc4 {[%emt 0:08:01]} 16. e4 {[%emt 0:00:00]} Qxa2 {[%emt 0:03:09]} 17. Nd4 {[%emt 0:00:00]} Qa6 {[%emt 0:12:17]} 18. Nc6 {[%emt 0:00:00]} Qb7 {[%emt 0:00:08]} 19. Kg1 {[%emt 0:00:00]} Rfe8 {[%emt 0:03:44]} 20. e5 {[%emt 0:00:00]} dxe5 {[%emt 0:05:10]} 21. Bxe5 {[%emt 0:00:00]} Qd7 {[%emt 0:07:32]} 22. Bxf6 {[%emt 0:00:00]} Bxf6 {[%emt 0:00:16]} 23. b4 {[%emt 0:00:00]} e6 {[%emt 0:08:30]} 24. Qf3 {[%emt 0:00:01]} Qxd5 {[%emt 0:00:28]} 25. Qxd5 {[%emt 0:00:52]} exd5 {[%emt 0:00:08]} 26. Rxe8+ {[%emt 0:00:09]} Rxe8 {[%emt 0:00:03]} 27. Nxa7 {[%emt 0:00:56]} Bc3 {[%emt 0:04:03]} 28. Nb5 {[%emt 0:01:54]} Re1+ {[%emt 0:01:18]} 29. Rxe1 {[%emt 0:00:47]} Bxe1 {[%emt 0:00:01]} 30. Nc7 {[%emt 0:00:18]} Bxb4 {[%emt 0:04:01]} 31. Nxd5 {[%emt 0:00:29]} Bc5 {[%emt 0:00:03]} 32. Kf1 {[%emt 0:01:06]} f5 {[%emt 0:00:47]} 33. f3 {[%emt 0:00:52]} Kf7 {[%emt 0:00:20]} 34. Ke2 {[%emt 0:00:24]} Ke6 {[%emt 0:00:15]} 35. Nc3 {[%emt 0:00:09]} Bb4 {[%emt 0:02:25]} 36. Nb1 {[%emt 0:02:17]} Kd5 {[%emt 0:00:19]} 37. Kd3 {[%emt 0:00:19]} g5 {[%emt 0:01:51]} 38. h3 {[%emt 0:02:01]} f4 {[%emt 0:00:56]} 39. gxf4 {[%emt 0:01:53]} gxf4 {[%emt 0:00:02]} 40. h4 {[%emt 0:01:10]} h5 {[%emt 0:00:04]} 41. Ke2 {[%emt 0:00:48]} Kd4 {[%emt 0:00:39]} 42. Nd2 {[%emt 0:01:15]} Bxd2 {[%emt 0:00:07]} 43. Kxd2 {[%emt 0:00:03]} b5 {[%emt 0:00:07]} 44. Kc2 {[%emt 0:00:32]} Ke5 {[%emt 0:18:20]} 0-1

[Event "FRA-ch Youth U18W 2019"]
[Site "Hyeres"]
[Date "2019.04.15"]
[Round "3.4"]
[White "Bellahcene, Meriem"]
[Black "Conti, Anne-Marie"]
[Result "1-0"]
[ECO "B13"]
[WhiteElo "1883"]
[BlackElo "1809"]
[Annotator "NA"]
[PlyCount "115"]
[EventDate "2019.04.14"]
[EventType "swiss"]
[EventCountry "FRA"]
[SourceTitle "playchess.com"]
[Source "ChessBase"]
[SourceQuality "1"]
[TimeControl "5400+30"]

1. e4 {[%emt 0:05:38]} c6 {[%emt 0:00:00]} 2. d4 {[%emt 0:00:04]} d5 {[%emt 0:00:00]} 3. exd5 {[%emt 0:00:02]} cxd5 {[%emt 0:00:00]} 4. Bd3 {[%emt 0:00:03]} g6 {[%emt 0:00:03]} 5. Bf4 {[%emt 0:00:28]} Bg7 {[%emt 0:00:16]} 6. c3 {[%emt 0:00:03]} Nc6 {[%emt 0:03:41]} 7. h3 {[%emt 0:03:03]} f6 $1 {[%emt 0:06:51]} 8. Nf3 {[%emt 0:10:25]} Nh6 $14 {[%emt 0:01:48]} (8... e5 $17 9. Qe2 Qe7 10. dxe5 fxe5) 9. O-O {[%emt 0:03:58]} Nf7 {[%emt 0:00:27]} 10. Re1 {[%emt 0:03:57]} O-O {[%emt 0:01:45]} 11. Bg3 {[%emt 0:00:04]} Re8 {[%emt 0:01:54]} 12. Nbd2 {[%emt 0:12:41]} e5 {[%emt 0:04:22]} 13. dxe5 {[%emt 0:00:14]} Ncxe5 {[%emt 0:10:59]} 14. Bb5 {[%emt 0:03:39]} Re7 {[%emt 0:07:30]} 15. Nd4 {[%emt 0:02:21]} a6 {[%emt 0:03:28]} 16. Bf1 {[%emt 0:06:15]} Nd6 {[%emt 0:11:11]} 17. N2f3 {[%emt 0:09:30]} Nf5 {[%emt 0:06:20]} 18. Nxf5 {[%emt 0:04:57]} Bxf5 {[%emt 0:04:40]} 19. Nxe5 {[%emt 0:00:57]} fxe5 {[%emt 0:00:34]} 20. Bh4 {[%emt 0:00:13]} Be6 {[%emt 0:06:55]} 21. Bxe7 {[%emt 0:00:23]} Qxe7 {[%emt 0:00:20]} 22. Be2 {[%emt 0:06:39]} Rd8 {[%emt 0:03:25]} 23. Bg4 {[%emt 0:01:34]} Bf7 {[%emt 0:01:11]} 24. Qd2 {[%emt 0:01:29]} Qf6 {[%emt 0:04:36]} 25. Bd1 {[%emt 0:04:22]} Bf8 {[%emt 0:00:58]} 26. Qe2 {[%emt 0:05:15]} Bd6 {[%emt 0:00:53]} 27. Qf3 {[%emt 0:01:52]} Qe7 {[%emt 0:00:33]} 28. Bb3 {[%emt 0:02:46]} e4 {[%emt 0:01:43]} 29. Qe3 {[%emt 0:00:25]} Qe5 {[%emt 0:01:41]} 30. g3 {[%emt 0:00:39]} Qf5 {[%emt 0:01:34]} 31. Kg2 {[%emt 0:02:39]} Be6 {[%emt 0:00:39]} 32. Rh1 {[%emt 0:00:18]} Rf8 {[%emt 0:01:52]} 33. Rad1 {[%emt 0:01:00]} Kg7 {[%emt 0:04:57]} 34. Bc2 {[%emt 0:04:50]} Bb8 {[%emt 0:01:40]} 35. c4 {[%emt 0:00:33]} Rf7 {[%emt 0:01:58]} 36. g4 {[%emt 0:01:28]} Qf3+ {[%emt 0:03:13]} 37. Kg1 {[%emt 0:00:02]} dxc4 {[%emt 0:01:05]} 38. Qd4+ {[%emt 0:00:11]} Qf6 {[%emt 0:02:19]} 39. Qxf6+ {[%emt 0:00:04]} Rxf6 {[%emt 0:00:01]} 40. Bxe4 {[%emt 0:00:07]} Ba7 {[%emt 0:00:25]} 41. Rd2 {[%emt 0:00:13]} b5 {[%emt 0:00:11]} 42. Kg2 {[%emt 0:00:16]} Bc5 {[%emt 0:00:39]} 43. Bf3 {[%emt 0:01:15]} Bc8 {[%emt 0:00:54]} 44. Rhd1 {[%emt 0:00:40]} Be7 {[%emt 0:01:01]} 45. Re2 {[%emt 0:01:11]} Kf8 {[%emt 0:00:17]} 46. Rde1 {[%emt 0:01:15]} Rf7 {[%emt 0:00:55]} 47. Bd5 {[%emt 0:00:49]} Rg7 {[%emt 0:00:01]} 48. f4 {[%emt 0:01:03]} Bd7 {[%emt 0:00:24]} 49. Bb7 {[%emt 0:01:23]} a5 {[%emt 0:00:10]} 50. Rd1 {[%emt 0:00:35]} Ke8 {[%emt 0:01:25]} 51. Kf3 {[%emt 0:00:21]} b4 {[%emt 0:01:06]} 52. Rd4 {[%emt 0:01:02]} Bb5 {[%emt 0:00:39]} 53. Re5 {[%emt 0:00:23]} Ba4 {[%emt 0:00:24]} 54. Rxa5 {[%emt 0:00:11]} Bc2 {[%emt 0:00:29]} 55. Ra8+ {[%emt 0:00:43]} Kf7 {[%emt 0:00:14]} 56. Bd5+ {[%emt 0:00:03]} Kf6 {[%emt 0:00:19]} 57. Rxc4 {[%emt 0:00:20]} Bd1+ {[%emt 0:00:11]} 58. Ke4 {[%emt 0:02:09]} 1-0

[Event "FRA-ch Youth U18W 2019"]
[Site "Hyeres"]
[Date "2019.04.16"]
[Round "4.1"]
[White "Lomandong, Noela-Joyce"]
[Black "Belluire, Beatrice"]
[Result "0-1"]
[ECO "A36"]
[WhiteElo "1942"]
[BlackElo "1870"]
[Annotator "NA"]
[PlyCount "72"]
[EventDate "2019.04.14"]
[EventType "swiss"]
[EventCountry "FRA"]
[SourceTitle "playchess.com"]
[Source "ChessBase"]
[SourceQuality "1"]
[TimeControl "5400+30"]

1. c4 {[%emt 0:00:00]} c5 {[%emt 0:00:00]} 2. Nc3 {[%emt 0:00:00]} Nc6 {[%emt 0:00:01]} 3. g3 {[%emt 0:00:01]} g6 {[%emt 0:00:10]} 4. Bg2 {[%emt 0:00:04]} Bg7 {[%emt 0:00:01]} 5. e3 {[%emt 0:02:00]} e5 {[%emt 0:00:30]} 6. Nge2 {[%emt 0:02:29]} Nge7 {[%emt 0:00:51]} 7. O-O {[%emt 0:10:03]} O-O {[%emt 0:00:21]} 8. a3 {[%emt 0:03:53]} a5 {[%emt 0:01:35]} 9. b3 {[%emt 0:05:16]} d6 {[%emt 0:01:46]} 10. Bb2 {[%emt 0:00:53]} Be6 {[%emt 0:02:51]} 11. Rc1 {[%emt 0:02:07]} Rb8 {[%emt 0:02:07]} 12. Nb5 {[%emt 0:02:15]} Qd7 {[%emt 0:28:39]} 13. d4 {[%emt 0:08:41]} cxd4 {[%emt 0:03:02]} 14. exd4 {[%emt 0:00:37]} d5 {[%emt 0:02:18]} 15. Qd2 {[%emt 0:07:01]} dxc4 {[%emt 0:05:33]} 16. bxc4 {[%emt 0:04:51]} exd4 {[%emt 0:00:53]} 17. Nf4 {[%emt 0:09:20]} Rfd8 {[%emt 0:15:30]} 18. Rfd1 {[%emt 0:03:28]} Bg4 {[%emt 0:03:45]} 19. Re1 {[%emt 0:00:02]} Ne5 {[%emt 0:03:44]} 20. Nxd4 {[%emt 0:05:54]} Nf3+ {[%emt 0:20:03]} 21. Nxf3 {[%emt 0:01:19]} Qxd2 {[%emt 0:00:02]} 22. Nxd2 {[%emt 0:00:09]} Bxb2 {[%emt 0:00:21]} 23. Rc2 {[%emt 0:08:03]} Bxa3 {[%emt 0:00:10]} 24. c5 {[%emt 0:04:18]} Nc6 {[%emt 0:00:10]} 25. Nd5 {[%emt 0:02:25]} Be6 {[%emt 0:01:15]} 26. Nc7 {[%emt 0:03:19]} Nb4 {[%emt 0:03:08]} 27. Rc3 {[%emt 0:09:42]} Bb2 {[%emt 0:00:01]} 28. Nxe6 {[%emt 0:04:10]} fxe6 {[%emt 0:00:20]} 29. Rce3 {[%emt 0:01:03]} Rxd2 {[%emt 0:00:05]} 30. Rxe6 {[%emt 0:00:41]} Bd4 {[%emt 0:00:59]} 31. Re8+ {[%emt 0:00:46]} Rxe8 {[%emt 0:00:08]} 32. Rxe8+ {[%emt 0:00:03]} Kf7 {[%emt 0:00:14]} 33. Rc8 {[%emt 0:00:34]} a4 {[%emt 0:03:02]} 34. Bxb7 {[%emt 0:00:45]} a3 {[%emt 0:00:17]} 35. c6 {[%emt 0:00:42]} a2 {[%emt 0:00:23]} 36. Ra8 {[%emt 0:00:04]} Nxc6 {[%emt 0:00:34]} 0-1